bitfinex/quotes_ETHUSD_20240701
["timestamp","ask_amount","ask_price","bid_price","bid_amount"]
[1719832145838,2.3346,3470.7,3470.3,3.69551]
[1719832146441,2.3346,3470.7,3470.3,3.75313546]
[1719832146821,2.3346,3470.7,3470.5,3.69541]
[1719832147021,2.3738,3471.0,3470.5,3.69541]
[1719832149839,0.04079563,3470.9,3470.5,3.69541]
[1719832150329,0.04079563,3470.9,3470.5,2.88141]
[1719832151154,0.06157535,3470.9,3470.3,3.69557]
[1719832151324,0.06157535,3470.9,3470.4,2.88144]
[1719832153649,0.06157535,3470.9,3470.2,2.88164]
[1719832154023,3.06157535,3470.9,3470.3,2.88158]
[1719832154260,0.06157535,3470.9,3470.3,2.88158]
[1719832154555,0.06157535,3470.9,3470.3,3.69558]
[1719832155656,0.06157535,3470.9,3470.3,0.814]
[1719832157160,2.3756,3470.7,3470.0,2.88182]
[1719832157369,2.39637972,3470.7,3470.0,3.69582]
[1719832157552,0.04054029,3470.6,3470.0,3.69582]
[1719832161448,0.04054029,3470.6,3470.1,2.88175]
[1719832161647,0.04054029,3470.6,3470.2,0.814]
[1719832162180,0.04054029,3470.6,3470.2,3.69567]
[1719832162474,0.04054029,3470.6,3470.3,2.93920808]
[1719832162676,0.04054029,3470.6,3470.3,3.75320808]
[1719832166183,0.04054029,3470.6,3470.3,0.87162808]
[1719832166779,0.04054029,3470.6,3470.3,0.814]
[1719832166974,0.04054029,3470.6,3470.1,1.25610896]
[1719832167181,0.04054029,3470.6,3470.1,4.95185896]
[1719832172685,2.92189029,3470.6,3469.9,5.98334963]
[1719832172877,2.88161,3470.3,3469.9,5.98334963]
[1719832173205,0.04037361,3470.2,3469.9,5.98334963]
[1719832173586,2.34167972,3470.4,3469.9,5.98334963]
[1719832173785,0.04030048,3470.1,3469.9,5.98334963]
[1719832173986,2.34167972,3470.4,3469.9,5.98334963]
[1719832174308,5.22318972,3470.4,3469.9,5.98334963]
[1719832174510,0.04038482,3470.3,3469.9,5.98334963]
[1719832176928,0.04038482,3470.3,3469.7,0.814]
[1719832178546,0.04038482,3470.3,3469.7,3.69603]
[1719832181111,0.04038482,3470.3,3469.7,0.814]
[1719832185512,2.92199482,3470.3,3469.6,2.88215]
[1719832185815,2.92199482,3470.3,3469.7,0.814]
[1719832186435,0.02077972,3470.2,3469.4,8.86564963]
[1719832186600,5.30696,3470.1,3469.4,8.13129057]
[1719832186919,5.34725542,3470.1,3469.4,5.98334963]
[1719832188433,2.3824,3470.0,3469.4,5.98334963]
[1719832188622,2.3824,3470.0,3469.4,6.79734963]
[1719832188922,0.04016336,3469.9,3469.4,5.98334963]
[1719832189120,0.04016336,3469.9,3469.2,3.69649]
[1719832189421,0.04016336,3469.9,3469.2,4.95273796]
[1719832189625,5.28501972,3470.0,3469.2,4.95273796]
[1719832189843,2.40317972,3470.0,3469.4,0.814]
[1719832190000,2.3824,3470.0,3469.4,0.814]
[1719832190199,0.03989673,3469.9,3469.4,3.69632]
[1719832190421,0.03989673,3469.9,3469.5,0.4952568]
[1719832191628,0.03989673,3469.9,3469.5,0.55289565]
[1719832191935,0.03989673,3469.9,3469.6,0.87163883]
[1719832192809,0.03989673,3469.9,3469.6,0.814]
[1719832193221,0.03989673,3469.9,3469.6,3.7537771]
[1719832193539,0.03989673,3469.9,3469.8,0.814]
[1719832193704,2.4853,3470.2,3469.8,0.814]
[1719832193911,0.04018483,3470.1,3469.8,0.814]
[1719832194742,0.04018483,3470.1,3469.8,0.87163545]
[1719832195544,0.04018483,3470.1,3470.0,0.814]
[1719832195845,2.4853,3470.6,3470.1,2.88176]
[1719832196304,2.4853,3470.6,3470.1,2.93938832]
[1719832196908,2.4853,3470.6,3470.1,2.88176]
[1719832197830,2.4853,3470.6,3470.0,1.50384508]
[1719832198023,2.4853,3470.6,3470.0,0.814]
[1719832199028,2.4853,3470.6,3470.0,3.69584]
[1719832201724,2.4853,3470.6,3470.1,2.88176]
[1719832207316,2.4853,3470.6,3469.9,2.8819]
[1719832207317,2.4853,3470.6,3469.9,2.88186]
[1719832207517,2.4853,3470.6,3469.9,3.69586]
[1719832208016,2.4853,3470.6,3470.0,2.88184]
[1719832208864,2.4853,3470.6,3469.9,3.69592]
[1719832209230,2.4853,3470.6,3470.0,2.88183]
[1719832210016,0.04012033,3470.5,3470.0,2.88183]
[1719832210215,0.04012033,3470.5,3470.1,0.657784]
[1719832213174,0.04012033,3470.5,3470.1,3.539534]
[1719832213467,0.04012033,3470.5,3470.1,4.353534]
[1719832213684,0.04012033,3470.5,3470.1,3.539534]
[1719832213888,0.04012033,3470.5,3470.1,4.353534]
[1719832214192,0.04012033,3470.5,3470.1,1.471784]
[1719832216510,0.04012033,3470.5,3470.2,0.05762804]
[1719832216786,0.04012033,3470.5,3470.1,1.471784]
[1719832217185,0.04012033,3470.5,3469.8,2.88197]
[1719832217396,0.04012033,3470.5,3469.9,0.814]
[1719832217687,2.4622,3470.4,3469.9,0.814]
[1719832218040,0.03883954,3470.3,3469.9,0.814]
[1719832220380,2.356,3470.2,3469.7,5.98334963]
[1719832220549,2.88178,3470.1,3469.7,6.79734963]
[1719832220748,0.03868399,3470.0,3469.7,6.79734963]
[1719832221356,5.23768,3470.2,3469.7,6.79734963]
[1719832221562,0.03873585,3470.1,3469.7,6.79734963]
[1719832224672,0.03873585,3470.1,3469.7,0.814]
[1719832227950,0.03873585,3470.1,3469.9,0.814]
[1719832228156,0.03873585,3470.1,3470.0,0.05763278]
[1719832228350,5.31705,3470.6,3470.0,0.05763278]
[1719832228699,0.03901491,3470.5,3470.1,0.814]
[1719832231615,0.07062422,3470.5,3470.1,0.814]
[1719832234929,0.07062422,3470.5,3470.1,3.69574]
[1719832235129,0.07062422,3470.5,3470.1,4.35926903]
[1719832235295,0.07062422,3470.5,3470.2,0.05762808]
[1719832235694,2.2994,3470.7,3470.2,0.05762808]
[1719832235919,0.07063047,3470.4,3470.2,0.05762808]
[1719832236124,2.2994,3470.7,3470.2,0.05762808]
[1719832236433,2.2994,3470.7,3470.1,3.69574]
[1719832236632,0.07073232,3470.6,3470.1,3.69574]
[1719832240157,0.07073232,3470.6,3470.1,0.814]
[1719832241289,0.07073232,3470.6,3470.0,2.88183]
[1719832242658,2.95211232,3470.6,3469.8,2.88197]
[1719832242863,2.97289204,3470.6,3469.8,3.69597]
[1719832243058,2.3242,3470.4,3469.7,0.369625]
[1719832243366,2.3242,3470.4,3469.7,1.183625]
[1719832243658,0.07073454,3470.3,3469.7,1.183625]
[1719832245637,2.2699,3470.0,3469.6,5.98334963]
[1719832246800,5.15174,3470.0,3469.6,5.98334963]
[1719832247309,0.07052208,3469.9,3469.6,5.98334963]
[1719832247593,0.07052208,3469.9,3469.4,0.814]
[1719832247754,0.07052208,3469.9,3469.4,2.07023196]
[1719832248752,2.95244208,3469.9,3469.4,0.814]
[1719832248995,2.95244208,3469.9,3469.1,8.86592963]
[1719832248996,2.3459,3469.4,3469.1,5.98334963]
[1719832249491,0.07044372,3469.3,3469.1,6.79734963]
[1719832251361,0.07044372,3469.3,3469.1,0.814]
[1719832251657,2.2675,3469.6,3469.1,0.814]
[1719832251881,0.07036595,3469.2,3469.1,0.814]
[1719832252059,2.2675,3469.6,3469.1,0.814]
[1719832252398,0.07036595,3469.2,3469.1,0.814]
[1719832252788,0.07036595,3469.2,3469.0,2.88266]
[1719832252990,2.2675,3469.6,3469.1,0.814]
[1719832253788,2.2675,3469.6,3469.2,0.814]
[1719832254985,0.07046944,3469.5,3469.2,0.814]
[1719832256497,0.07046944,3469.5,3469.2,1.183658]
[1719832256904,0.07046944,3469.5,3469.4,3.69634]
[1719832257089,2.3975,3470.0,3469.4,3.69634]
[1719832257297,2.3975,3470.0,3469.6,0.814]
[1719832258701,2.3975,3470.0,3469.8,0.814]
[1719832259069,2.3975,3470.0,3469.6,0.814]
[1719832260495,2.3975,3470.0,3469.8,0.814]
[1719832261506,2.3975,3470.0,3469.0,8.86593963]
[1719832261827,2.3975,3470.0,3469.2,3.6965]
[1719832261828,0.02077972,3469.9,3469.2,3.6965]
[1719832262376,0.02077972,3469.9,3469.0,8.86596963]
[1719832262377,2.4984,3469.8,3469.0,8.86596963]
[1719832262577,2.4956,3469.6,3469.0,8.86596963]
[1719832263570,2.4956,3469.6,3469.0,5.98334963]
[1719832263997,2.88226,3469.5,3469.0,5.98334963]
[1719832264214,2.2779,3469.3,3469.0,5.98334963]
[1719832264427,2.2779,3469.3,3468.7,3.69689]
[1719832264947,2.2779,3469.3,3468.7,2.88289]
[1719832265072,2.2779,3469.3,3468.7,3.69689]
[1719832265271,2.2779,3469.3,3468.5,8.86641963]
[1719832265500,2.2779,3469.3,3468.5,11.09184459]
[1719832265704,0.02077972,3469.2,3468.5,10.27784459]
[1719832265912,0.09115206,3469.2,3468.5,11.09184459]
[1719832266382,0.07037234,3469.2,3468.7,0.814]
[1719832267817,0.07037234,3469.2,3468.7,3.6969]
[1719832268184,0.07037234,3469.2,3468.8,0.814]
[1719832268498,2.2779,3469.3,3468.8,0.814]
[1719832268705,0.07032139,3469.1,3468.8,0.814]
[1719832268909,0.07037234,3469.2,3468.8,0.814]
[1719832269106,0.07027044,3469.0,3468.8,0.814]
[1719832269330,2.2779,3469.3,3468.8,0.814]
[1719832269497,0.07021948,3468.9,3468.5,8.86637963]
[1719832269693,5.16033,3469.3,3468.6,3.69699]
[1719832270117,0.0704217,3469.2,3468.6,3.69699]
[1719832271001,0.0704217,3469.2,3468.7,2.88291]
[1719832271538,0.0704217,3469.2,3468.7,3.69691]
[1719832271907,0.0704217,3469.2,3468.7,3.75456155]
[1719832276035,0.0704217,3469.2,3468.7,3.69691]
[1719832276625,0.0704217,3469.2,3468.7,3.7545616]
[1719832277056,2.2566,3469.1,3468.7,2.9405616]
[1719832277246,2.2566,3469.1,3468.7,3.7545616]
[1719832277453,0.07028084,3469.0,3468.7,3.7545616]
[1719832277645,0.07028084,3469.0,3468.9,0.814]
[1719832277849,0.07028084,3469.0,3468.7,2.9405616]
[1719832278048,0.07028084,3469.0,3468.8,0.814]
[1719832278239,2.2566,3469.1,3468.8,0.814]
[1719832278432,0.07022988,3468.9,3468.8,0.814]
[1719832278662,2.2566,3469.1,3468.8,0.814]
[1719832279037,0.07028084,3469.0,3468.8,0.814]
[1719832279635,0.07028084,3469.0,3468.8,4.95887915]
[1719832279852,0.07028084,3469.0,3468.9,2.88275]
[1719832280324,2.2509,3469.3,3468.9,2.88275]
[1719832280538,0.07028084,3469.0,3468.9,2.88275]
[1719832280745,2.2509,3469.3,3468.9,2.88275]
[1719832280948,0.07028084,3469.0,3468.9,2.88275]
[1719832281139,2.2509,3469.3,3468.9,2.88275]
[1719832281527,0.07038274,3469.2,3468.9,2.88275]
[1719832281953,2.2509,3469.3,3468.9,2.88275]
[1719832282436,0.07038274,3469.2,3468.9,2.88275]
[1719832282838,2.2509,3469.3,3468.9,2.88275]
[1719832283041,0.07033179,3469.1,3468.9,2.88275]
[1719832283258,2.2509,3469.3,3468.9,2.88275]
[1719832283549,0.07029106,3469.0,3468.9,2.88275]
[1719832283753,2.2509,3469.3,3468.9,2.88275]
[1719832284271,0.07039296,3469.2,3468.9,2.88275]
[1719832284869,0.07034201,3469.1,3468.9,2.88275]
[1719832285365,2.2509,3469.3,3468.9,2.88275]
[1719832285562,0.07029669,3469.0,3468.9,2.88275]
[1719832286170,2.2509,3469.3,3468.9,2.88275]
[1719832286361,0.07029669,3469.0,3468.9,2.88275]
[1719832286663,0.07029669,3469.0,3468.9,3.66692592]
[1719832286832,2.2509,3469.3,3468.9,3.66692592]
[1719832287032,0.07029606,3469.0,3468.9,2.88275]
[1719832287232,2.2509,3469.3,3468.9,2.88275]
[1719832287473,0.07039983,3469.2,3468.9,2.88275]
[1719832287826,2.2509,3469.3,3468.9,2.88275]
[1719832288028,0.07039796,3469.2,3468.9,2.88275]
[1719832288243,2.2509,3469.3,3468.9,2.88275]
[1719832288470,0.07034888,3469.1,3468.9,2.88275]
[1719832288650,2.2509,3469.3,3468.9,2.88275]
[1719832288970,0.07029606,3469.0,3468.9,2.88275]
[1719832289169,2.2509,3469.3,3469.0,2.88263]
[1719832289567,0.02077972,3469.6,3469.0,2.88263]
[1719832289769,2.2684,3469.5,3469.0,2.88263]
[1719832290808,2.2684,3469.5,3469.1,2.94022688]
[1719832290937,2.2684,3469.5,3469.1,0.05764688]
[1719832292794,2.2684,3469.5,3469.1,2.94023688]
[1719832293194,5.3594,3469.8,3469.2,0.814]
[1719832293394,2.3594,3469.8,3469.3,2.88242]
[1719832293921,2.3594,3469.8,3469.3,2.94006473]
[1719832294107,2.3594,3469.8,3469.3,5.82242473]
[1719832294309,2.3594,3469.8,3469.3,2.94000473]
[1719832294892,2.3594,3469.8,3469.4,0.814]
[1719832296222,2.3594,3469.8,3469.4,3.69632]
[1719832296445,2.3594,3469.8,3469.4,3.75396078]
[1719832297630,2.3594,3469.8,3469.4,3.69632]
[1719832297827,2.3067,3470.0,3469.5,2.88224]
[1719832298034,2.3067,3470.0,3469.5,2.9398791]
[1719832298650,2.3067,3470.0,3469.6,2.88215]
[1719832299851,0.07067264,3469.9,3469.6,2.88215]
[1719832300408,0.07067264,3469.9,3469.5,0.0576391]
[1719832300605,0.07067264,3469.9,3469.5,2.9398891]
[1719832303756,0.07067264,3469.9,3469.5,0.0576391]
[1719832303924,0.07067264,3469.9,3469.3,2.88237]
[1719832304332,0.07067264,3469.9,3469.4,2.88232]
[1719832305345,0.07067264,3469.9,3469.2,2.88247]
[1719832305644,0.07067264,3469.9,3469.0,2.88264]
[1719832305645,2.4048,3469.7,3469.0,2.88264]
[1719832305809,0.07003139,3469.6,3469.0,2.88264]
[1719832308358,0.07003139,3469.6,3468.9,8.86609963]
[1719832310597,2.4611,3468.6,3468.5,5.98334963]
[1719832310897,2.5305932,3468.6,3468.0,2.88345]
[1719832311094,2.5305932,3468.6,3468.1,1.336935]
[1719832311241,2.5305932,3468.6,3468.3,0.814]
[1719832311242,2.4611,3468.6,3468.3,0.814]
[1719832311444,0.06944037,3468.5,3468.3,0.814]
[1719832311673,2.2968,3468.8,3468.3,0.814]
[1719832311894,0.06931875,3468.4,3468.1,3.406355]
[1719832312047,5.17968,3468.8,3468.2,1.22782846]
[1719832312247,0.06947167,3468.7,3468.2,1.22782846]
[1719832313297,0.814,3468.6,3467.9,5.98834963]
[1719832313501,2.97319139,3468.7,3467.9,5.98834963]
[1719832313502,2.31907972,3468.5,3467.9,0.005]
[1719832313791,3.0,3468.7,3468.0,0.814]
[1719832314003,2.2983,3468.8,3467.9,0.005]
[1719832314004,0.06911191,3468.4,3467.9,0.005]
[1719832314310,5.18114,3468.8,3468.2,0.814]
[1719832314311,0.06657751,3468.3,3468.2,0.814]
[1719832314470,0.06657751,3468.3,3467.9,0.005]
[1719832314792,2.2983,3468.8,3468.3,2.88323]
[1719832315013,2.2983,3468.8,3468.4,0.814]
[1719832315148,2.2983,3468.8,3468.3,2.94088819]
[1719832315344,2.2983,3468.8,3468.3,3.60472501]
[1719832316009,2.2983,3468.8,3468.3,2.94088819]
[1719832318311,2.2983,3468.8,3468.3,2.88323]
[1719832318507,2.2983,3468.8,3467.9,5.98834963]
[1719832318508,2.88292,3468.7,3467.9,8.87192963]
[1719832318803,2.90369972,3468.7,3467.9,9.68592963]
[1719832319014,2.90369972,3468.7,3468.0,1.25696596]
[1719832319210,0.814,3468.6,3467.9,5.98834963]
[1719832319507,2.88309,3468.5,3467.9,5.98834963]
[1719832319672,0.814,3468.6,3467.9,5.98834963]
[1719832319879,3.69703,3468.6,3467.9,8.87191963]
[1719832320060,0.02077972,3468.7,3468.0,2.8835]
[1719832320269,5.99514,3468.8,3468.1,0.05766264]
[1719832320496,0.02077972,3468.7,3468.0,2.8835]
[1719832320868,5.18114,3468.8,3468.0,2.8835]
[1719832321111,5.18114,3468.8,3468.1,3.69741]
[1719832321378,0.02077972,3468.7,3468.1,3.69741]
[1719832321537,5.20191972,3468.8,3468.1,5.08028147]
[1719832321747,5.20191972,3468.8,3468.1,2.19687147]
[1719832321748,2.2983,3468.8,3468.1,2.19687147]
[1719832322026,2.2983,3468.8,3468.3,3.69719]
[1719832322233,2.2983,3468.8,3468.4,2.88315]
[1719832323308,2.2983,3468.8,3468.5,2.88307]
[1719832323845,5.2937,3469.1,3468.5,3.69707]
[1719832324193,5.31447972,3469.1,3468.5,2.88307]
[1719832324793,2.31447972,3469.1,3468.5,2.88307]
[1719832325218,2.2937,3469.1,3468.5,2.88307]
[1719832326356,2.2937,3469.1,3468.6,2.883]
[1719832326658,2.4321,3469.7,3468.9,0.814]
[1719832326867,2.4321,3469.7,3469.1,2.88258]
[1719832327031,2.4321,3469.7,3469.3,2.88241]
[1719832327229,2.4321,3469.7,3469.1,3.69658]
[1719832327443,2.4321,3469.7,3469.1,2.88258]
[1719832327652,2.4321,3469.7,3469.0,2.88265]
[1719832328463,2.88228,3469.5,3468.6,8.86628963]
[1719832328675,2.88228,3469.5,3468.6,9.68028963]
[1719832329529,0.83477972,3469.6,3468.7,2.88292]
[1719832329848,0.83477972,3469.6,3468.9,2.8827]
[1719832329849,0.05771898,3469.5,3468.9,2.8827]
[1719832331173,0.05771898,3469.5,3468.9,2.8827]
[1719832332475,0.05742915,3469.4,3469.2,2.88245]
[1719832333131,0.05742915,3469.4,3469.3,2.88242]
[1719832334521,0.05742915,3469.4,3469.3,2.94006365]
[1719832334725,0.05742915,3469.4,3469.3,5.82248365]
[1719832334926,0.05742915,3469.4,3469.3,6.73521201]
[1719832335156,0.144,3469.5,3469.4,5.76468]
[1719832335356,0.144,3469.5,3469.4,9.51865545]
[1719832335539,0.144,3469.5,3469.4,9.46102]
[1719832335872,0.144,3469.5,3469.4,10.01102]
[1719832336088,0.144,3469.5,3469.4,11.35247484]
[1719832337036,0.144,3469.5,3469.4,8.47013484]
[1719832338029,0.144,3469.5,3469.4,7.10613484]
[1719832338235,0.144,3469.5,3469.4,7.92013484]
[1719832338444,0.20057352,3469.5,3469.4,7.92013484]
[1719832338643,0.144,3469.5,3469.4,7.92013484]
[1719832345098,0.144,3469.5,3469.4,8.47013484]
[1719832347496,0.144,3469.5,3469.4,11.47013484]
[1719832347909,0.144,3469.5,3469.4,13.95893484]
[1719832348236,0.144,3469.5,3469.4,16.84127484]
[1719832353239,0.144,3469.5,3469.4,13.14493484]
[1719832353525,0.144,3469.5,3469.4,13.95893484]
[1719832354442,0.144,3469.5,3469.4,16.84127484]
[1719832354787,0.144,3469.5,3469.4,13.95893484]
[1719832356532,0.144,3469.5,3469.4,16.84127484]
[1719832358102,1e-08,3469.5,3469.4,18.57527484]
[1719832358302,2.4905,3470.6,3469.4,9.92825484]
[1719832358619,2.4905,3470.6,3470.4,0.814]
[1719832358970,0.05701189,3470.5,3470.4,0.814]
[1719832359293,0.05701189,3470.5,3470.4,3.69551]
[1719832360014,0.05701189,3470.5,3470.4,6.63464372]
[1719832360416,2.3043,3470.8,3470.5,2.88138]
[1719832360627,2.3043,3470.8,3470.7,2.88126]
[1719832361242,2.35953697,3470.8,3470.7,2.88126]
[1719832361943,0.05523697,3470.8,3470.7,2.93888065]
[1719832362237,0.05523697,3470.8,3470.7,6.48355472]
[1719832362532,2.3286,3471.1,3471.0,2.88101]
[1719832362747,2.3286,3471.1,3471.0,3.69501]
[1719832363622,2.3666,3471.6,3471.1,2.88092]
[1719832363826,2.3666,3471.6,3471.2,0.05760864]
[1719832364021,2.3666,3471.6,3471.1,2.88092]
[1719832364350,3.191289,3471.6,3471.0,3.69495]
[1719832365863,5.361,3471.5,3470.7,5.98334963]
[1719832366022,2.4572,3471.1,3470.7,5.98334963]
[1719832367744,2.4572,3471.1,3470.6,2.88132]
[1719832367906,2.4572,3471.1,3470.7,3.69526]
[1719832368315,2.4572,3471.1,3470.7,0.814]
[1719832369449,2.4572,3471.1,3470.7,3.69526]
[1719832370011,5.871932,3471.1,3470.4,2.88149]
[1719832370225,5.871932,3471.1,3470.4,3.69549]
[1719832370226,2.991002,3471.1,3470.4,3.69549]
[1719832370609,2.991002,3471.1,3470.4,2.88149]
[1719832370810,2.991002,3471.1,3470.5,3.69541]
[1719832371425,5.871932,3471.1,3470.5,3.69541]
[1719832372439,2.2857,3471.0,3470.5,3.69541]
[1719832375058,0.05489037,3470.9,3470.5,3.69541]
[1719832377463,0.05489037,3470.9,3470.7,0.814]
[1719832377644,0.05489037,3470.9,3470.8,2.88118]
[1719832377874,0.05489037,3470.9,3470.8,6.419997]
[1719832378074,0.05489037,3470.9,3470.8,6.969997]
[1719832378275,2.479,3471.4,3471.0,2.88095]
[1719832378586,0.05528379,3471.3,3471.0,2.88095]
[1719832379398,0.05528379,3471.3,3471.1,2.88092]
[1719832382165,0.05528379,3471.3,3471.1,0.814]
[1719832382494,0.05528379,3471.3,3471.0,3.69495]
[1719832386384,0.05528379,3471.3,3471.1,2.88092]
[1719832386586,0.05528379,3471.3,3471.2,2.88084]
[1719832387390,0.05528379,3471.3,3471.2,3.69484]
[1719832389278,0.05528379,3471.3,3471.2,3.83884]
[1719832391074,0.05528379,3471.3,3471.2,6.71968]
[1719832391406,2.3278,3471.7,3471.2,6.71968]
[1719832391563,2.3278,3471.7,3471.3,2.88074]
[1719832393708,2.3278,3471.7,3471.3,2.93834991]
[1719832393916,2.3278,3471.7,3471.4,2.88065]
[1719832394064,2.3278,3471.7,3471.4,3.69465]
[1719832394266,2.3278,3471.7,3471.6,3.69451]
[1719832394466,2.3278,3471.7,3471.6,2.88051]
[1719832396573,2.3904,3472.1,3471.7,2.88042]
[1719832397170,2.3904,3472.1,3471.8,2.88033]
[1719832397673,2.3904,3472.1,3471.9,2.88026]
[1719832399910,2.3904,3472.1,3471.7,2.88037]
[1719832400211,2.3904,3472.1,3471.8,2.88034]
[1719832400622,2.3904,3472.1,3471.6,2.88049]
[1719832400920,2.3904,3472.1,3471.7,2.88043]
[1719832401321,2.3904,3472.1,3471.8,2.88034]
[1719832403022,2.38267461,3472.1,3471.8,2.88034]
[1719832405088,0.05382133,3472.0,3471.8,2.88034]
[1719832405626,0.05382133,3472.0,3471.6,2.8805]
[1719832406582,2.4572,3471.8,3471.2,3.02484]
[1719832406710,2.4572,3471.8,3471.3,2.88075]
[1719832407102,0.05398042,3471.7,3471.3,2.88075]
[1719832407494,2.4572,3471.8,3471.3,2.88075]
[1719832407694,0.05392954,3471.6,3471.4,2.88067]
[1719832407932,0.05399809,3471.7,3471.4,2.88067]
[1719832408237,2.4572,3471.8,3471.4,2.88067]
[1719832408532,0.05395605,3471.6,3471.4,2.88067]
[1719832408694,2.4572,3471.8,3471.4,2.88067]
[1719832408695,2.4572,3471.8,3471.4,3.552621]
[1719832408886,0.05392283,3471.5,3471.4,2.88067]
[1719832409086,2.4572,3471.8,3471.4,2.88067]
[1719832409324,0.05393657,3471.5,3471.4,2.88067]
[1719832409524,2.4572,3471.8,3471.4,2.88067]
[1719832409731,0.05393657,3471.5,3471.2,6.71962]
[1719832409931,2.4572,3471.8,3471.3,2.88075]
[1719832410390,0.05405601,3471.7,3471.3,2.88075]
[1719832410596,2.4572,3471.8,3471.3,2.88075]
[1719832411030,0.05405767,3471.7,3471.3,2.88075]
[1719832411336,2.4572,3471.8,3471.3,2.88075]
[1719832411537,0.05400679,3471.6,3471.3,2.88075]
[1719832411723,0.05407534,3471.7,3471.3,2.88075]
[1719832411927,0.05397357,3471.5,3471.3,2.88075]
[1719832412096,2.4753,3472.5,3471.6,2.88051]
[1719832412298,2.4753,3472.5,3472.1,0.814]
[1719832412503,0.0522418,3472.4,3472.1,0.814]
[1719832413225,0.0522418,3472.4,3471.9,0.814]
[1719832413414,0.0522418,3472.4,3472.0,3.493818]
[1719832414824,0.0522418,3472.4,3472.1,2.88009]
[1719832418335,0.814,3472.9,3472.1,2.88009]
[1719832418336,0.814,3473.2,3472.3,2.87991]
[1719832418536,0.02077972,3473.0,3472.3,2.87991]
[1719832418735,0.02077972,3473.0,3472.4,2.87985]
[1719832419642,0.02077972,3473.0,3472.5,2.87976]
[1719832419796,0.0508905,3472.9,3472.5,2.87976]
[1719832420501,3.02077972,3473.2,3472.5,2.87976]
[1719832420743,0.05083965,3472.8,3472.5,2.87976]
[1719832420946,3.02077972,3473.2,3472.5,2.87976]
[1719832421115,0.05080393,3472.7,3472.5,2.87976]
[1719832421444,0.05080393,3472.7,3472.4,0.87159083]
[1719832421445,2.3314,3473.0,3472.6,2.87967]
[1719832423719,2.3314,3473.0,3472.4,2.87984]
[1719832423955,2.4221,3472.8,3472.2,2.87996]
[1719832424865,2.4587,3472.7,3472.0,5.98334963]
[1719832425067,2.4587,3472.7,3472.0,6.79734963]
[1719832425234,2.4587,3472.7,3472.2,2.88001]
[1719832425646,2.4587,3472.7,3472.0,9.67744963]
[1719832425647,2.47947972,3472.7,3472.0,9.67744963]
[1719832425957,2.4566,3472.5,3472.0,8.86344963]
[1719832427370,2.47737972,3472.5,3472.0,8.86344963]
[1719832427547,2.47737972,3472.5,3472.0,6.86464963]
[1719832428474,2.4566,3472.5,3472.2,2.88001]
[1719832432365,2.3301,3472.7,3472.3,2.8799]
[1719832434880,0.05076068,3472.6,3472.3,2.8799]
[1719832440499,0.05076068,3472.6,3472.4,2.87984]
[1719832441069,2.4053,3472.9,3472.4,2.87984]
[1719832441274,0.05062539,3472.5,3472.4,2.87984]
[1719832441474,2.4053,3472.9,3472.4,2.87984]
[1719832441800,2.4053,3472.9,3472.5,2.87976]
[1719832445915,2.4053,3472.9,3472.6,2.87967]
[1719832447389,2.4053,3472.9,3472.4,2.87984]
[1719832448199,2.4053,3472.9,3472.5,2.87976]
[1719832448572,2.4053,3472.9,3472.0,3.98454963]
[1719832448573,2.4053,3472.9,3472.3,2.87988]
[1719832448774,2.4053,3472.9,3472.4,2.87985]
[1719832448775,0.53053697,3472.8,3472.4,2.87985]
[1719832448973,2.4053,3472.9,3472.4,2.87985]
[1719832449252,2.4053,3472.9,3472.4,2.85185]
[1719832449973,0.05077419,3472.8,3472.4,2.85185]
[1719832451112,0.07155391,3472.8,3472.2,2.87998]
[1719832451329,0.6071853,3472.8,3472.1,2.88009]
[1719832451476,2.458,3472.7,3472.1,2.88009]
[1719832451814,2.52768757,3472.7,3472.1,2.88009]
[1719832452899,2.50690785,3472.7,3472.1,2.88009]
[1719832453409,2.87968,3472.6,3472.0,3.98454963]
[1719832453622,2.92853699,3472.6,3472.0,3.98454963]
[1719832453777,2.92853699,3472.6,3472.0,6.86472963]
[1719832454125,2.4032,3472.5,3472.0,2.88018]
[1719832454284,2.4032,3472.5,3471.9,0.814]
[1719832454488,0.04889596,3472.4,3471.9,3.6942]
[1719832454820,0.04889596,3472.4,3471.8,2.88028]
[1719832455173,0.04889596,3472.4,3471.9,2.88026]
[1719832456883,2.92874596,3472.4,3471.7,2.88037]
[1719832457293,2.92874596,3472.4,3471.8,2.88034]
[1719832458921,2.94952568,3472.4,3471.8,2.88034]
[1719832461118,2.94952568,3472.4,3471.6,7.67899963]
[1719832461294,2.94952568,3472.4,3471.6,8.84676262]
[1719832461778,2.94952568,3472.4,3471.7,2.88042]
[1719832467229,2.87994,3472.3,3471.7,2.88042]
[1719832467384,2.92840845,3472.3,3471.7,2.88042]
[1719832470931,2.4797,3472.2,3471.6,3.98454963]
[1719832471150,5.36013,3471.7,3471.6,3.98454963]
[1719832471286,5.36013,3471.7,3471.0,5.27845]
[1719832471287,5.36013,3471.7,3471.1,2.88092]
[1719832471490,5.40664802,3471.7,3471.1,2.88092]
[1719832472014,2.52621802,3471.7,3471.1,2.88092]
[1719832472224,5.40669802,3471.7,3471.0,4.79854963]
[1719832472517,5.40669802,3471.7,3471.0,8.97493659]
[1719832474639,5.40669802,3471.7,3471.1,2.88092]
[1719832475512,2.88051,3471.6,3471.0,3.98454963]
[1719832475729,2.4522,3471.3,3471.0,3.98454963]
[1719832475930,2.88086,3471.2,3471.0,3.98454963]
[1719832476169,2.88093,3471.1,3471.0,3.98454963]
[1719832476559,2.92705551,3471.1,3471.0,3.98454963]
[1719832478170,2.92705551,3471.1,3470.5,2.88142]
[1719832478377,2.92705551,3471.1,3470.5,4.17085296]
[1719832478671,2.88093,3471.1,3470.5,4.17085296]
[1719832480553,2.88093,3471.1,3470.5,2.88142]
[1719832482138,5.33297,3471.3,3470.6,2.88134]
[1719832482554,0.0461764,3471.2,3470.6,0.814]
[1719832482744,0.0461764,3471.2,3470.9,0.814]